Cogmind - Beta 15 @@@ ROGUE MODE // 2025.05.16 @ 18:21:39 Player: Player Result: Destroyed by G-47 Trooper with Particle Gun Performance ------------- Evolutions (0) 0 Regions Visited (1) 200 Robots Destroyed (19) 95 Value Destroyed (504) 504 Prototype IDs (0) 0 Alien Tech Used (0) 0 Bonus (0) 0 TOTAL SCORE: 799 Bonus ------- None Cogmind --------- Core Integrity 0/250 Matter 263/300 Energy 240/250 System Corruption 0% Temperature Cool (33) Movement Core (300) Ox5 Location -10/Materials Parts ------- > --- POWER (1) -------- Ion Engine > --- PROPULSION (2) --- (None) > --- UTILITY (2) ------ Medium Storage Unit > --- WEAPON (2) ------- Mining Laser > --- INVENTORY (10) --- Ion Engine Ion Engine Improved Heat Sink Structural Scanner Seismic Detector Seismic Detector Tractor Beam Peak State ------------ > --- POWER ------------ Ion Engine > --- PROPULSION ------- Light Treads Light Treads > --- UTILITY ---------- Small Storage Unit Hardened Light Armor Plating > --- WEAPON ----------- Light Assault Rifle Light Assault Rifle > --- INVENTORY -------- Ion Engine Light Ion Engine Improved Heat Sink Seismic Detector Seismic Detector Tractor Beam Light Assault Rifle Mining Laser [Rating: 9] Favorites ----------- Power Ion Engine Engine Ion Engine Propulsion Light Treads Treads Light Treads Wheel Compact Wheel Utility Small Storage Unit Device Seismic Detector Storage Small Storage Unit Protection Hardened Light Armor Plating Weapon Light Assault Rifle Energy Gun EM Pulse Gun Ballistic Gun Light Assault Rifle Special Weapon Mining Laser Build | -11 -10 ------- Run | Yrd Mat Slots Evolved . | . . Power . | . . Propulsion . | . . Utility . | . . Weapon . | . . Parts Attached 17 | 8 9 Power 4 | 1 3 Engine 4 | 1 3 Core . | . . Reactor . | . . Propulsion 3 | 2 1 Treads 2 | 2 . Leg . | . . Wheel 1 | . 1 Hover . | . . Flight . | . . Utility 5 | 3 2 Device 2 | 2 . Storage 2 | 1 1 Processor . | . . Hackware . | . . Protection 1 | . 1 Artifact . | . . Weapon 5 | 2 3 Energy Gun 1 | 1 . Energy Cannon . | . . Ballistic Gun 3 | 1 2 Ballistic Cannon . | . . Launcher . | . . Special Weapon 1 | . 1 Impact Weapon . | . . Slashing Weapon . | . . Piercing Weapon . | . . Special Melee Weapon . | . . Unidentified Prototypes . | . . Parts Lost 7 | . 7 Power . | . . Propulsion 3 | . 3 Utility 1 | . 1 Weapon 3 | . 3 Highest Loss Streak 5 | . 5 To Critical Strikes . | . . Average Backups 7 | 3 7 Power 1 | 1 2 Propulsion . | . . Utility 3 | . 3 Weapon 1 | 1 1 Tool/Special . | . . Unused Backups 13 | . 13 Power 6 | . 6 Propulsion . | . . Utility 4 | . 4 Weapon 3 | . 3 Tool/Special . | . . Average Slot Usage (%) 96 | . 96 Engine 14 | . 14 Treads 24 | . 24 Wheel 1 | . 1 Device 1 | . 1 Storage 14 | . 14 Protection 11 | . 11 Energy Gun 2 | . 2 Ballistic Gun 25 | . 25 Peak Build Rating 9 | 7 9 Average Rating 7 | 6 7 On Entrance 3 | . 7 Naked Turns . | . . Heaviest Build 22 | 14 22 Greatest Support 40 | 40 40 Greatest Overweight (x) 5 | . 5 Average Overweight (x) . | . . Largest Inventory Capacity 10 | 8 10 Average Capacity 8 | 7 8 Most Carried 8 | 8 8 Average Carried 7 | 3 7 Final Capacity 10 | 8 10 Final Carried 8 | 8 7 Class Distribution -------------------- 100% | Mutant Dominant Class ---------------- Mutant | -10/Materials Resources | -11 -10 ----------- Run | Yrd Mat Matter Collected 473 | 298 175 Remotely . | . . Salvage Created 667 | 174 493 Parts 47 | 16 31 Haulers Intercepted . | . . Recyclers Shooed . | . . Parts Field Recycled . | . . Retrieved Matter . | . . Parts Self-Destructed . | . . Prevented . | . . Kills | -11 -10 ------- Run | Yrd Mat Combat Hostiles Destroyed 12 | . 12 Guns 11 | . 11 Cannons 1 | . 1 Classes Destroyed 4 | 2 2 Tunneler 5 | 5 . Recycler 1 | 1 . Watcher 1 | . 1 Grunt 12 | . 12 Best Kill Streak 4 | 4 4 Combat Bots Only 2 | . 2 Max Kills in Single Turn 2 | 2 1 Gunslinging . | . . Exploded . | . . Melee . | . . Uniques/NPCs Destroyed . | . . Combat | -11 -10 -------- Run | Yrd Mat Hostile Shots Fired 117 | . 117 Missed 22 | . 22 Hits 95 | . 95 Projectile 95 | . 95 Damage Taken 1313 | . 1313 Core 258 | . 258 Absorbed by Shields . | . . Regen/Repaired (Parts) 103 | . 103 Core Remaining (%) 100 | 100 . Volleys Fired 105 | 18 87 Largest 2 | 2 2 Hottest 100 | 60 100 Shots Fired 185 | 36 149 Gun 183 | 36 147 Cannon . | . . Launcher . | . . Special 2 | . 2 Kinetic 165 | 18 147 Thermal 2 | . 2 Explosive . | . . Electromagnetic 18 | 18 . Robot Hit Streak 14 | 6 14 Robot Miss Streak 3 | 3 3 Penetration Max . | . . Secondary Targets 1 | . 1 Max Gunslinging Chain 1 | . 1 Shots Hit Robots 128 | 23 105 Core Hits 46 | 7 39 Critical Kills . | . . Critical Parts Destroyed 2 | . 2 Critical Strikes 2 | . 2 Destroy 2 | . 2 Melee Attacks . | . . Impact . | . . Slashing . | . . Piercing . | . . Sneak Attacks . | . . Combat Hostiles . | . . Follow-up Attacks . | . . Damage Inflicted 1226 | 369 857 Guns 1080 | 247 833 Cannons . | . . Explosions 122 | 122 . Melee . | . . Ramming . | . . Kinetic 912 | 79 833 Thermal 146 | 122 24 Explosive . | . . Electromagnetic 168 | 168 . Impact . | . . Slashing . | . . Piercing . | . . Highest Corruption . | . . Average Corruption . | . . Corruption Purged . | . . Corruption Blocked . | . . Overload Shots . | . . Overflow Damage . | . . Projectiles . | . . Explosions . | . . Melee . | . . Knockbacks . | . . Impact . | . . Kinetic . | . . Secondary . | . . Self-Inflicted Damage . | . . Shots . | . . Rammed . | . . Targets Rammed . | . . Kicked . | . . Crushed . | . . Highest Temperature 221 | 40 221 Average Temperature 57 | 19 65 Received Heat Transfer 723 | . 723 Effects 1 | . 1 Interference 1 | . 1 Siege Activations . | . . Martial Activations . | . . Shielding Activations . | . . Robots Disrupted . | . . Combat Hostiles . | . . Robots Corrupted . | . . Combat Hostiles . | . . Parts Fried 1 | 1 . Impact Corruptions . | . . Robots Melted . | . . Combat Hostiles . | . . Parts Melted . | . . Heat Transferred 200 | 150 50 Parts Sabotaged . | . . Parts Stolen . | . . Parts Stripped . | . . Power Chain Reactions 2 | 2 . Alert | -11 -10 ------- Run | Yrd Mat Maximum Alert Level . | . . Low Security (%) 100 | 100 100 Level 1 . | . . Level 2 . | . . Level 3 . | . . Level 4 . | . . Level 5 . | . . High Security . | . . Max Security . | . . Peak Influence 98 | 20 98 Initial . | . . Average 29 | 2 34 Influence Increases 387 | 30 357 Destroy 0b10 Robot/C 240 | . 240 Destroy 0b10 Robot/NC 35 | 30 5 Destroy Leader 52 | . 52 Lose Combat Pursuer 60 | . 60 Influence Decreases 373 | 30 343 Time Decay 313 | 30 283 Lost Part 60 | . 60 Squads Dispatched 2 | . 2 Investigation 1 | . 1 Extermination . | . . Reinforcement 1 | . 1 Assault . | . . Garrison . | . . Intercept . | . . Searches Triggered . | . . Construction Impeded . | . . Haulers Reinforced . | . . Active Scanning Responses . | . . Cargo Convoy Interrupts . | . . Stealth | -11 -10 --------- Run | Yrd Mat Distress Signals 5 | . 5 Communications Jammed . | . . Distress Signals . | . . Times Spotted 25 | . 25 Peak Tracking Total 6 | . 6 Tactical Retreats 3 | . 3 Traps | -11 -10 ------- Run | Yrd Mat Traps Triggered 2 | . 2 Indirectly . | . . Trap Hack Attempts . | . . Triggered . | . . Disarmed . | . . Reprogrammed . | . . Reused . | . . Traps Extracted . | . . Installed . | . . Triggered . | . . Machines | -11 -10 ---------- Run | Yrd Mat Machines Disabled . | . . Max in Single Turn . | . . Machines Repaired . | . . Machines Dismantled . | . . Machines Sabotaged . | . . Overloaded Fab Kills . | . . Hacking | -11 -10 --------- Run | Yrd Mat Machines Accessed 6 | . 6 Terminals 4 | . 4 Fabricators . | . . Repair Stations 1 | . 1 Recycling Units 1 | . 1 Scanalyzers . | . . Garrison Access . | . . Total Hacks 15 | . 15 Successful 8 | . 8 Failed 7 | . 7 Catastrophic 2 | . 2 Database Lockouts . | . . Manual 10 | . 10 Terminals 10 | . 10 Fabricators . | . . Repair Stations 3 | . 3 Recycling Units 2 | . 2 Scanalyzers . | . . Garrison Access . | . . Terminal Hacks 2 | . 2 Alert Level 1 | . 1 Hauler Manifests 1 | . 1 Fabricator Hacks . | . . Repair Station Hacks 2 | . 2 Scan Component 1 | . 1 Repair 1 | . 1 Recycling Unit Hacks 1 | . 1 Report Inventory 1 | . 1 Scanalyzer . | . . Garrison Access Hacks . | . . Unauthorized Hacks 3 | . 3 Terminals 2 | . 2 Botnet 2 | . 2 Fabricators . | . . Repair Stations . | . . Recycling Units 1 | . 1 Reject 1 | . 1 Scanalyzers . | . . Garrison Access . | . . Data Cores Recovered . | . . Used . | . . Hacking Detections 6 | . 6 Full Trace Events 1 | . 1 Feedback Events . | . . Feedback Blocked . | . . Robot Schematics Acquired . | . . Robots Built . | . . Authchips . | . . Time . | . . Total Robot Build Rating . | . . Part Schematics Acquired . | . . Parts Built . | . . Authchips . | . . Time . | . . Total Part Build Rating . | . . Parts Repaired 1 | . 1 Time 32 | . 32 Parts Recycled . | . . Recycled Matter . | . . Retrieved Matter . | . . Retrieved Components . | . . Parts Scanalyzed . | . . Part Schematics Acquired . | . . Parts Damaged . | . . Bothacking | -11 -10 ------------ Run | Yrd Mat Used RIF Installer . | . . Robots Hacked . | . . Non-combat . | . . Combat . | . . Robot Hacks Applied . | . . Relay Couplers Released . | . . Fabnet Peak Effective % . | . . Robots Rewired . | . . Allies Hacked . | . . Hacks Repelled . | . . Allies | -11 -10 -------- Run | Yrd Mat Total Allies . | . . Largest Group . | . . Highest-Rated Group . | . . Highest-Rated Ally . | . . Total Orders . | . . Ally Attacks . | . . Total Damage . | . . Kills . | . . Allies Corrupted . | . . Allies Melted . | . . Intel | -11 -10 ------- Run | Yrd Mat Active Infowar (turns) 231 | 110 121 Seismic 231 | 110 121 Robot Analysis Total . | . . Derelict Logs Recovered . | . . Drone Launches . | . . Drone Recoveries . | . . Exploration | -11 -10 ------------- Run | Yrd Mat Turns Passed 1253 | 212 1041 Spaces Moved 524 | 90 434 Core 5 | 3 2 Treads 457 | 87 370 Legs . | . . Wheels 62 | . 62 Hover . | . . Flight . | . . Fastest Speed 50 | 50 115 Average Speed 154 | 156 154 Slowest Speed 300 | 160 300 Overloaded Moves . | . . Propulsion Burnouts . | . . Robots Hopped . | . . Potential Cave-ins . | . . Cave-ins Triggered . | . . Exploration Rate (%) 35 | 5 65 Regions Visited 1 Branch Regions . Pre-discovered Areas . | . . Known Exits Taken . | . . Unknown Exits Taken 1 | 1 . Scrap Searched . | . . Spaces Dug . | . . Terrain Destroyed . | . . Melee . | . . Projectile . | . . AOE . | . . Terrain Rammed . | . . Walls Destroyed . | . . Machines Disabled . | . . Actions | -11 -10 --------- Run | Yrd Mat Total 816 | 125 691 Wait 141 | 3 138 Move 523 | 89 434 Hop . | . . Pick Up 15 | 7 8 Fast Attach 11 | 7 4 Attach 2 | . 2 Detach 1 | . 1 Swap 5 | 1 4 Drop 13 | . 13 Fire 105 | 18 87 Melee . | . . Ram . | . . Kick . | . . Crush . | . . Escape Stasis . | . . Rewire . | . . Trap . | . . Miscellaneous . | . . Route ------- -11/Scrapyard -10/Materials (discovered 3 exits: [*Mat] / [*Min] / [*Sub]) History --------- Turn | Location | Event 37 | -11/Scrapyard | Discovered new exit (range 14) 213 | -11/Scrapyard | Entered Materials 310 | -10/Materials | Build established: Mutant 445 | -10/Materials | Discovered new exit (range 13) 445 | -10/Materials | Discovered new exit (range 13) 758 | -10/Materials | Repaired Hrd. Light Armor Plating 825 | -10/Materials | Discovered new exit (range 6) 1076 | -10/Materials | Core integrity fell below 50% 1243 | -10/Materials | Core integrity fell below 20% 1254 | -10/Materials | Destroyed by G-47 Trooper with Particle Gun Last Messages --------------- 01167_ Dropped Sml. Storage Unit. 01168_ U-05 Engineer works on Processing Tank. 01170_ Connecting with Terminal... >>Alert(Check) Current Alert Level: Low Security >>Trojan(Botnet) Trojan loaded successfully. Testing... Terminal linked with 1 system. Awaiting botnet instructions. 01173_ U-05 Engineer works on Processing Tank. 01180_ Connecting with Terminal... 01186_ W-16 Scout sends out distress signal. 01210_ Lgt. Treads destroyed. 01220_ Hrd. Light Armor Plating destroyed. 01230_ Lgt. Assault Rifle destroyed. 01232_ Com. Wheel destroyed. 01240_ Lgt. Assault Rifle destroyed. 01241_ G-34 Mercenary destroyed. Map ----- +----------------------------------------------------+ | ?????????????????????????????????????????????????? | | ?????????????????????????????????????????????????? | | ?????????????????????????????????????????????????? | | ?????????????????????????????????????????????????? | | ?????????????????????????????????????????????????? | | ?????????????????????????????????????????????????? | | ?????????????????????????????????????????????????? | | ?????????????????????????????????????????????????? | | ?????????????????????????????????????????????????? | | #????????????????????????????????????????????????? | | #????????????????????????????????????????????????? | | #????????????????????????????????????????????????? | | #????????????????????????????????????????????????? | | #????????????????????????????????????????????????? | | #???????????####+##########??????????????????????? | | #???????????# #???????##+###?????????? | | ????????????# #??????? ##T#??????? | | ????????????# #??????? ??????? | | ????????????# +??????? ???????? | | ????????????# #??????? """ ? ??? | | ????????????# #??????? ^ """ ??? | | #################+###############?# """" ???? | | ^ ^ %+**!! #?# = ????? | | ###=*!! #?# ! ??????? | | """ T #?# !! #?# ????????? | | """ ####### ###@* ### ##?????????? | | """ #???# ##g####### #?????????? | | """ #???# ! #?????????? | | % % #???# T #?????????? | | % % #???# #?????????? | | " "#%###+######???# ##+###+### #?????????? | | "R"# # #?????######## #?#######?????????? | | """# # #????????????# #?????????????????? | | #### # #????????????# #?????????????????? | | #### # #????????????# " #?????????????????? | | ## # #????????????# T #?????????????????? | | + # #????????????# " #?????????????????? | | ## ###########?????????# #?????????????????? | | ## ## #?????????#######?????????????????? | | ## ##""" #?????????#]]] #??????????????????? | | # #""" *#?????????#]]] #??????????????????? | | #""" #?????????#]]] #??????????????????? | | " +% #?????????# #??????????????????? | | #""" ! ########### #??????????????????? | | # #""" # === # #??????????????????? | | #######""" # ] === #[ #??????????????????? | | ??????# # == # #??????????????????? | | ??????#######+## ###+###?????????????????? | | ????????##??# ## "" # #?????????????????? | | ????????# ??# ## "T # #?????????????????? | +----------------------------------------------------+ Best States ------------- Heat Dissipation 25 Energy Generation 10 Energy Capacity 250 Matter Stores 300 Matter Capacity 300 Sight Range 16 Terrain Scan Density 10 Armor Coverage 150 Evasion (%) 40 Recoil Reduction 2 Item Schematics ----------------- None Robot Schematics ------------------ None Fabricated ------------ Nothing Repaired ---------- Hrd. Light Armor Plating | 42% | -10/Materials Alien Tech Used ----------------- None Achievements -------------- None Challenges ------------ None Game ------ Seed CarbideRainbowBank Manual? 0 Play Time 00:15:26 Cumulative 196.4 hours Start 2025.05.16 @ 18:04:43 End 2025.05.16 @ 18:21:39 Sessions 1 Manual Loads 0 Difficulty Rogue Special Mode None Game No. 119 Rogue 119 Adventurer 0 Explorer 0 Win Type - Total 1 Types 1/0/0/0/0/0/0/0/0/0 Lore% 29 Gallery% 50 Achievement% 39 Wizard Run 0 Options --------- Layout 2 ASCII 0 Keyboard 0 Movement Mouse Keybinds 0 Fullscreen 1 Font 24/Smallcaps Map View 50x44 Zoom Use 0% Tactical HUD 1 Map Filters NONE Filters NONE Steam 1 RUN: b6b753dc-22a0-4551-afa5-ba212ee85b2b